fUSD/lending_fUSD_20260202
["ID","MTS","AMOUNT","RATE_DAILY","PERIOD"]
[404273035,1770021049940,-150.0,0.00017912,2]
[404273036,1770021049950,-500.0,0.00017918,2]
[404273037,1770021049959,-150.0,0.00017934,2]
[404273038,1770021049970,-150.0,0.00017956,2]
[404273039,1770021049979,-506.1208044,0.00017972,2]
[404273040,1770021049989,-150.0,0.00017978,2]
[404273041,1770021049999,-5888.0,0.0001798,2]
[404273042,1770021050009,-500.0,0.00017982,2]
[404273043,1770021050019,-986.0,0.00017982,2]
[404273044,1770021050028,-248.17115062,0.00017999,2]
[404273045,1770021050037,-299.809,0.00017999,2]
[404273046,1770021050047,-300.0,0.00017999,2]
[404273047,1770021050056,-300.0,0.00017999,2]
[404273048,1770021050065,-300.0,0.00017999,2]
[404273049,1770021050074,-670.83228666,0.00017999,2]
[404273050,1770021050083,-300.0,0.00017999,2]
[404273051,1770021050092,-666.0,0.00017999,2]
[404273052,1770021050103,-150.0,0.00017999,2]
[404273053,1770021050112,-242.32940609,0.00018,2]
[404273054,1770021050121,-2209279.27561291,0.00018,2]
[404273055,1770021050359,-10097.31809474,0.00018,2]
[404273056,1770021050371,-4617.51286413,0.00018,2]
[404273057,1770021050382,-680.50293505,0.00018,2]
[404273058,1770021050394,-7643.20594865,0.00018,2]
[404273059,1770021050432,-277.632,0.00013698,2]
[404273060,1770021050443,-222.368,0.00013698,2]
[404273061,1770021050452,-3253.0,0.00017302,2]
[404273062,1770021050463,-834899.52380879,0.00018,2]
[404273063,1770021050709,-588.0,0.00011116,2]
[404273064,1770021050722,-1073.10185603,0.00011116,2]
[404273065,1770021050736,-614.67515807,0.00011116,2]
[404273066,1770021050746,-500.0,0.00011324,2]
[404273067,1770021050757,-500.0,0.00011598,2]
[404273068,1770021050767,-500.0,0.00011872,2]
[404273069,1770021050793,-500.0,0.00012146,2]
[404273070,1770021050808,-500.0,0.00013698,2]
[404273071,1770021050819,-500.0,0.00013698,2]
[404273072,1770021050831,-500.0,0.00013698,2]
[404273073,1770021050842,-500.0,0.00013698,2]
[404273075,1770021050854,-500.0,0.00013939,2]
[404273076,1770021050864,-152.6488478,0.00014559,2]
[404273077,1770021050875,-500.0,0.0001602,2]
[404273078,1770021050885,-500.0,0.00017617,2]
[404273079,1770021050897,-157639.61744992,0.00018,2]
[404273080,1770021050910,-813.94526043,0.00018,2]
[404273081,1770021050925,-150.0,0.00018,2]
[404273082,1770021050936,-2348.91140711,0.00018,2]
[404273083,1770021050946,-1000.0,0.00018,2]
[404273084,1770021050958,-1000.0,0.00018,2]
[404273085,1770021050968,-1000.0,0.00018,2]
[404273086,1770021050978,-1000.0,0.00018,2]
[404273087,1770021050990,-1000.0,0.00018,2]
[404273088,1770021051001,-1000.0,0.00018,2]
[404273089,1770021051011,-1000.0,0.00018,2]
[404273090,1770021051022,-1000.0,0.00018,2]
[404273091,1770021051032,-1000.0,0.00018,2]
[404273092,1770021051042,-1000.0,0.00018,2]
[404273093,1770021051054,-1000.0,0.00018,2]
[404273094,1770021051065,-1000.0,0.00018,2]
[404273095,1770021051076,-1000.0,0.00018,2]
[404273096,1770021051087,-1000.0,0.00018,2]
[404273097,1770021051097,-1000.0,0.00018,2]
[404273098,1770021051109,-1000.0,0.00018,2]
[404273099,1770021051119,-1000.0,0.00018,2]
[404273100,1770021051136,-1000.0,0.00018,2]
[404273101,1770021051147,-1000.0,0.00018,2]
[404273102,1770021051158,-1000.0,0.00018,2]
[404273103,1770021051177,-1000.0,0.00018,2]
[404273104,1770021051188,-1000.0,0.00018,2]
[404273105,1770021051471,-1000.0,0.00018,2]
[404273106,1770021051483,-1141.04007611,0.00018,2]
[404273107,1770021051493,-1000.0,0.00018,2]
[404273108,1770021051504,-150.0,0.00018,2]
[404273109,1770021051514,-456.03157398,0.00018,2]
[404273110,1770021051524,-7232501.23501901,0.00018,2]
[404273111,1770021051572,-500.0,0.0001242,2]
[404273112,1770021051584,-500.0,0.00017617,2]
[404273113,1770021051594,-308.18901428,0.00018,2]
[404273114,1770021051606,-77021.39085959,0.00018,2]
[404273115,1770021051622,-890.978,0.00018,2]
[404273116,1770021051639,-500.0,0.00017617,2]
[404273117,1770021051649,-4676.03152716,0.00018,2]
[404273118,1770021051661,-342.26322073,0.00018,2]
[404273119,1770021052223,-5864.39379565,0.00018,2]
[404273120,1770021052235,-523.34287504,0.00018,2]
[404273121,1770021052531,-500.0,0.00012694,2]
[404273122,1770021052541,-117.82537685,0.00012968,2]
[404273123,1770021052552,-382.17462315,0.00012968,2]
[404273124,1770021052562,-445.41531508,0.00013242,2]
[404273125,1770021052573,-54.58468492,0.00013242,2]
[404273126,1770021052583,-500.0,0.00013516,2]
[404273127,1770021052592,-500.0,0.0001379,2]
[404273128,1770021052603,-500.0,0.00014064,2]
[404273129,1770021052613,-500.0,0.00014338,2]
[404273130,1770021052623,-172.44516144,0.00017617,2]
[404273131,1770021052633,-152.6488478,0.000179,2]
[404273132,1770021052643,-4363.23471384,0.00018,2]
[404273133,1770021052667,-333.44283979,0.00014612,2]
[404273134,1770021052680,-166.55716021,0.00014612,2]
[404273135,1770021052689,-453.99868716,0.00018,2]
[404273136,1770021052701,-860.27023978,0.00018,2]
[404273137,1770021052717,-1384.02197146,0.00018,2]
[404273138,1770021052728,-500.0,0.00018,2]
[404273139,1770021052739,-5858.51232533,0.00018,2]
[404273140,1770021052751,-1494.489,0.00018,2]
[404273141,1770021052763,-1058.32946893,0.00018,2]
[404273142,1770021052776,-621.71764742,0.00018,2]
[404273143,1770021052788,-2004.87526858,0.00018,2]
[404273144,1770021052800,-1554.87227009,0.00018,2]
[404273145,1770021052812,-381993.80750547,0.00018,2]
[404273146,1770021053016,-676.0,0.0001346,2]
[404273147,1770021053027,-485.0,0.00013487,2]
[404273148,1770021053039,-1329.0,0.00013487,2]
[404273149,1770021053050,-316.57133444,0.00014886,2]
[404273150,1770021053060,-6061.32866555,0.00018,2]
[404273151,1770021053074,-2341.81661271,0.00018,2]
[404273152,1770021053086,-2730.0,0.00018,2]
[404273153,1770021053098,-807.79486865,0.00018,2]
[404273154,1770021053540,9854.36405183,0.00011017,2]
[404273155,1770021053564,10000.0,0.00011017,2]
[404273156,1770021053587,10000.0,0.00011017,2]
[404273157,1770021053610,10000.0,0.00011017,2]
[404273158,1770021053633,10000.0,0.00011017,2]
[404273159,1770021053655,10000.0,0.00011017,2]
[404273160,1770021053679,10000.0,0.00011017,2]
[404273161,1770021053703,10000.0,0.00011017,2]
[404273162,1770021053725,10000.0,0.00011017,2]
[404273163,1770021053752,5942.81799198,0.00011017,2]
[404273164,1770021053777,6114.81799198,0.00011017,2]
[404273165,1770021053801,6114.81799198,0.00011017,2]
[404273166,1770021053825,6114.81799198,0.00011017,2]
[404273167,1770021053851,6114.81799198,0.00011017,2]
[404273168,1770021053876,6114.81799198,0.00011017,2]
[404273169,1770021053900,6114.81799198,0.00011017,2]
[404273170,1770021053930,6114.81799198,0.00011017,2]
[404273171,1770021053956,6114.81799198,0.00011017,2]
[404273172,1770021053982,6114.81799198,0.00011017,2]
[404273173,1770021054969,-10000.01,0.00011017,2]
[404273174,1770021055174,-10000.01,0.00011017,2]
[404273175,1770021055309,-10000.01,0.00011017,2]
[404273176,1770021055432,-10000.01,0.00011017,2]
[404273177,1770021055560,-10000.01,0.00011017,2]
[404273178,1770021055679,-10000.01,0.00011017,2]
[404273179,1770021055821,-10000.01,0.00011017,2]
[404273180,1770021056142,-10000.01,0.00011017,2]
[404273181,1770021056304,-10000.01,0.00011017,2]
[404273182,1770021056433,-10000.01,0.00011017,2]
[404273194,1770021104114,-300.0,0.00011016,2]
[404273195,1770021121881,300.0,0.00011016,2]
[404273197,1770021137488,-300.0,0.00011016,2]
[404273198,1770021137506,-300.0,0.00011017,2]
[404273199,1770021137518,-9400.01,0.00011017,2]
[404273200,1770021137701,-10000.01,0.00011017,2]
[404273201,1770021137823,-10000.01,0.00011017,2]
[404273202,1770021137961,-10000.01,0.00011017,2]
[404273203,1770021138085,-10000.01,0.00011017,2]
[404273204,1770021138236,-10000.01,0.00011017,2]
[404273205,1770021138365,-10000.01,0.00011017,2]
[404273206,1770021138503,-4490.49502837,0.00011017,2]
[404273207,1770021138527,-4490.49502837,0.00011017,2]
[404273208,1770021138542,-1019.01994326,0.00011017,2]
[404273209,1770021138651,-10000.01,0.00011017,2]
[404273210,1770021138781,-10000.01,0.00011017,2]
[404273211,1770021143511,-2221.29447163,0.00011017,2]
[404273212,1770021143524,-5557.42105674,0.00011017,2]
[404273213,1770021149116,10000.01,0.00011017,2]
[404273214,1770021149169,10000.01,0.00011017,2]
[404273215,1770021149203,10000.01,0.00011017,2]
[404273216,1770021149236,10000.01,0.00011017,2]
[404273217,1770021149268,10000.01,0.00011017,2]
[404273218,1770021149299,10000.01,0.00011017,2]
[404273219,1770021149331,10000.01,0.00011017,2]
[404273220,1770021149362,10000.01,0.00011017,2]
[404273221,1770021149392,10000.01,0.00011017,2]
[404273222,1770021149422,10000.01,0.00011017,2]
[404273223,1770021152832,-10000.01,0.00011017,2]
[404273224,1770021153052,-10000.01,0.00011017,2]
[404273225,1770021153185,-10000.01,0.00011017,2]
[404273226,1770021153327,-10000.01,0.00011017,2]
[404273227,1770021153449,-10000.01,0.00011017,2]
[404273228,1770021153566,-10000.01,0.00011017,2]
[404273229,1770021153722,-10000.01,0.00011017,2]
[404273230,1770021154092,-10000.01,0.00011017,2]
[404273231,1770021155747,-10000.01,0.00011017,2]
[404273232,1770021155890,-10000.01,0.00011017,2]
[404273233,1770021159033,-10000.01,0.00011017,2]
[404273234,1770021159353,-10000.01,0.00011017,2]
[404273235,1770021159485,-10000.01,0.00011017,2]
[404273236,1770021159627,-10000.01,0.00011017,2]
[404273237,1770021159744,-10000.01,0.00011017,2]
[404273238,1770021159869,-10000.01,0.00011017,2]
[404273239,1770021160005,-10000.01,0.00011017,2]
[404273240,1770021160125,-10000.01,0.00011017,2]
[404273241,1770021161986,-10000.01,0.00011017,2]
[404273242,1770021162110,-10000.01,0.00011017,2]
[404273243,1770021162291,-10000.01,0.00011017,2]
[404273244,1770021162435,-10000.01,0.00011017,2]
[404273245,1770021162621,-10000.01,0.00011017,2]
[404273246,1770021162737,-10000.01,0.00011017,2]
[404273247,1770021162850,-10000.01,0.00011017,2]
[404273248,1770021162990,-10000.01,0.00011017,2]
[404273254,1770021222426,-250.00209646,0.00010862,2]
[404273257,1770021339629,-13.40485654,0.00010862,2]
[404273260,1770021367940,186.59514346,7.945e-05,2]
[404273261,1770021367970,165.12531965,7.945e-05,2]
[404273262,1770021367996,198.46531965,7.945e-05,2]
[404273263,1770021368025,300.0,7.945e-05,2]
[404273264,1770021368059,300.0,7.945e-05,2]
[404273265,1770021368087,200.0,7.945e-05,2]
[404273266,1770021368118,163.36858583,7.945e-05,2]
[404273267,1770021368147,500.63516671,7.945e-05,2]
[404273268,1770021368175,335.99624746,7.945e-05,2]
[404273269,1770021368203,164.00375254,7.945e-05,2]
[404273270,1770021368231,160.47557318,7.945e-05,2]
[404273271,1770021368260,215.25,7.945e-05,2]
[404273272,1770021368288,1464.48439583,7.945e-05,2]
[404273273,1770021368316,326.05020054,7.945e-05,2]
[404273274,1770021368344,744.50826071,7.945e-05,2]
[404273275,1770021368372,1150.345313,7.945e-05,2]
[404273276,1770021368399,459.27466644,7.945e-05,2]
[404273277,1770021368428,31456.983332,7.945e-05,2]
[404273278,1770021368495,5531.0,0.000135,5]
[404273279,1770021368579,3590.06387362,0.000132,3]
[404273280,1770021368612,1940.93612638,0.000132,3]
[404273281,1770021399839,5531.0,0.000135,5]
[404273282,1770021400075,541.0,0.000132,3]
[404273284,1770021541874,300.0,0.00010916,2]
[404273285,1770021558713,3486.16,0.00010829,2]
[404273286,1770021575492,295.36,0.000109,2]
[404273287,1770021585946,33.48,0.00010829,2]
[404273293,1770021657531,-1165.76391811,0.00010441,2]
[404273294,1770021660229,-1299.8374505,0.00010441,2]
[404273295,1770021662774,-169.9595074,0.00010441,2]
[404273296,1770021665189,-337.99508484,0.00010441,2]
[404273297,1770021671352,-1316.44,0.00010388,2]
[404273298,1770021673030,-424.51149527,0.00010388,2]
[404273299,1770021674852,-228.97051473,0.00010388,2]
[404273300,1770021674874,-120.02948527,0.00010431,2]
[404273303,1770021763763,-3095.31051473,0.00010431,2]
[404273304,1770021763793,-250.0,0.00010436,2]
[404273305,1770021763823,-73.56403915,0.00010441,2]
[404273306,1770021763852,-1286.42089224,0.0001061,2]
[404273307,1770021764057,-589.41910776,0.0001061,2]
[404273308,1770021764093,-250.0,0.00010615,2]
[404273309,1770021764124,-238.0,0.00010775,2]
[404273310,1770021764158,-409.80164616,0.00010817,2]
[404273311,1770021764193,-300.0,0.00010828,2]
[404273312,1770021764225,-1591.84849216,0.00010829,2]
[404273313,1770021764329,-3241.87150784,0.00010829,2]
[404273314,1770021764359,-409.80164616,0.00010867,2]
[404273315,1770021764464,-1442.29277205,0.00010916,2]
[404273316,1770021766263,-339.38924425,0.00010916,2]
[404273317,1770021767830,-504.29197886,0.00010916,2]
[404273318,1770021769917,-280.77359984,0.00010916,2]
[404273319,1770021773006,-241.10012185,0.00010916,2]
[404273320,1770021777990,-1854.27946016,0.00010916,2]
[404273321,1770021780221,-1601.98415386,0.00010916,2]
[404273322,1770021781682,300.0,0.00010915,2]
[404273323,1770021782370,-1376.4768139,0.00010916,2]
[404273324,1770021784509,-1069.10399443,0.00010916,2]
[404273325,1770021788018,-550.0,0.00010916,2]
[404273326,1770021790536,-313.35017007,0.00010916,2]
[404273327,1770021792470,-500.0,0.00010916,2]
[404273328,1770021795285,-4322.90986851,0.00010916,2]
[404273329,1770021796932,-500.0,0.00010916,2]
[404273330,1770021807488,-220.08765661,0.00010916,2]
[404273331,1770021810381,-852.41999983,0.00010916,2]
[404273332,1770021813579,-1492.90782458,0.00010916,2]
[404273333,1770021815635,-362.88705281,0.00010916,2]
[404273334,1770021817027,361.57650206,0.000109,2]
[404273335,1770021817777,-190.48782475,0.00010916,2]
[404273336,1770021818605,207.39976241,0.00010816,2]
[404273337,1770021818694,361.57650206,0.000109,2]
[404273338,1770021821510,-195.17,0.00010916,2]
[404273339,1770021824768,-385.61538346,0.00010916,2]
[404273340,1770021827367,-203.46109691,0.00010916,2]
[404273341,1770021829626,-300.0,0.00010916,2]
[404273342,1770021875054,600.0,0.000106,3]
[404273343,1770021877149,1300.0,0.000107,3]
[404273344,1770021879325,1900.0,0.000108,3]
[404273345,1770021881330,2600.0,0.000109,3]
[404273346,1770021885208,3200.0,0.000119,4]
[404273347,1770021886833,197.07,8.464e-05,2]
[404273348,1770021887266,197.07,9.31e-05,2]
[404273349,1770021887469,8160.68,0.0001058,2]
[404273350,1770021887509,197.07,0.00010157,2]
[404273351,1770021901547,17.56723347,0.00010915,2]
[404273352,1770021901571,282.43276653,0.00010915,2]
[404273353,1770021902202,1200.0,0.00010915,2]
[404273354,1770021902763,150.0,0.00010915,2]
[404273355,1770021902844,-207.13383015,0.00010916,2]
[404273356,1770021905090,-216.67,0.00010916,2]
[404273357,1770021912910,1000.0,0.000105,2]
[404273358,1770021933928,1784.99533962,0.00010816,2]
[404273359,1770021940198,150.0,0.00010888,2]
[404273360,1770021941718,-907.2260868,0.00010916,2]
[404273361,1770021944657,-1045.99429143,0.00010916,2]
[404273362,1770021961849,300.0,0.00010915,2]
[404273363,1770021964129,271.18237651,0.000109,2]
[404273364,1770021968284,271.18237651,0.000109,2]
[404273365,1770022010520,364.26275164,0.00010816,2]
[404273366,1770022021789,300.0,0.00010915,2]
[404273458,1770022060770,3925.95438919,0.00010377,2]
[404273459,1770022060793,10000.01,0.00010377,2]
[404273460,1770022060814,5242.18561081,0.00010377,2]
[404273461,1770022061937,-250.0,0.00010916,2]
[404273462,1770022069127,152.6488478,0.0001091,2]
[404273463,1770022093308,-650.0,0.00010916,2]
[404273464,1770022094544,500.0,0.00010916,2]
[404273465,1770022095189,500.0,0.00010916,2]
[404273466,1770022095490,-500.0,0.00010916,2]
[404273467,1770022095799,500.0,0.00010916,2]
[404273468,1770022096423,500.0,0.00010916,2]
[404273469,1770022097032,500.0,0.00010916,2]
[404273470,1770022097675,500.0,0.00010916,2]
[404273471,1770022097839,-500.0,0.00010916,2]
[404273472,1770022098360,500.0,0.00010916,2]
[404273473,1770022099079,500.0,0.00010916,2]
[404273474,1770022099308,-300.0,0.00010916,2]
[404273475,1770022099685,500.0,0.00010916,2]
[404273476,1770022100377,105.17554139,0.00010916,2]
[404273477,1770022100400,394.82445861,0.00010916,2]
[404273478,1770022100899,-500.0,0.00010916,2]
[404273479,1770022101157,500.0,0.00010916,2]
[404273480,1770022113416,203.3867824,0.000109,2]
[404273481,1770022114467,203.3867824,0.000109,2]
[404273482,1770022121332,-230.54652626,0.00010916,2]
[404273483,1770022141582,300.0,0.00010915,2]
[404273680,1770022173640,-769.45347374,0.00010916,2]
[404273748,1770022183925,1345.29,0.00010543,2]
[404273749,1770022184120,1345.29,0.00010571,2]
[404273750,1770022184348,1345.29,0.00010598,2]
[404273751,1770022184542,1345.29,0.00010626,2]
[404273752,1770022184750,1345.29,0.00010654,2]
[404273753,1770022184996,1345.29,0.00010682,2]
[404273754,1770022185196,326.67197659,0.00010709,2]
[404273755,1770022185220,1018.61802341,0.00010709,2]
[404273756,1770022185428,1345.29,0.00010737,2]
[404273757,1770022185654,1345.29,0.00010765,2]
[404273758,1770022185843,1345.29,0.00010793,2]
[404273759,1770022186055,1345.29,0.0001082,2]
[404273760,1770022186264,1345.29,0.00010848,2]
[404273762,1770022186459,1345.29,0.00010876,2]
[404273763,1770022186671,909.65197659,0.00010904,2]
[404273764,1770022186701,435.63802341,0.00010904,2]
[404273767,1770022201704,1200.0,0.00010915,2]
[404273791,1770022224638,8364.37197659,0.00010268,2]
[404273792,1770022224663,10000.01,0.00010268,2]
[404273793,1770022224690,8950.34802341,0.00010268,2]
[404273798,1770022231575,-201126.05253692,0.00010916,2]
[404273801,1770022236288,500.0,0.00010915,2]
[404273802,1770022236366,228.54024711,0.00010915,2]
[404273803,1770022236422,321.12172948,0.00010915,2]
[404273804,1770022236448,94.40103658,0.00010915,2]
[404273805,1770022237629,-2673697.93423797,0.00010916,2]
[404273806,1770022237639,-250.0,0.00010916,2]
[404273807,1770022237648,-151.0,0.00010916,2]
[404273808,1770022237658,-181.65419782,0.00010916,2]
[404273809,1770022237668,-239.0,0.00010916,2]
[404273810,1770022237677,-250.0,0.00010916,2]
[404273811,1770022237687,-43152.7974,0.00010917,2]
[404273812,1770022237696,-237.2858,0.00010917,2]
[404273813,1770022237706,-702.32131295,0.00010917,2]
[404273814,1770022237716,-305.04364172,0.00010917,2]
[404273815,1770022237726,-222.10310365,0.00010917,2]
[404273816,1770022237735,-1345.29,0.00010931,2]
[404273817,1770022237744,-150.0,0.00010959,2]
[404273818,1770022237754,-1345.29,0.00010959,2]
[404273819,1770022237763,-4466.0833,0.00010986,2]
[404273820,1770022237773,-1345.29,0.00010987,2]
[404273821,1770022237782,-167.668,0.00010999,2]
[404273822,1770022237791,-2362.355,0.00010999,2]
[404273823,1770022237801,-197.07,0.00011003,2]
[404273824,1770022237811,-2872.75,0.0001101,2]
[404273825,1770022237820,-999.99,0.0001101,2]
[404273826,1770022237830,-2692.16,0.0001101,2]
[404273827,1770022237839,-2935.8,0.0001101,2]
[404273828,1770022237848,-9999.99,0.0001101,2]
[404273829,1770022237857,-981.85,0.0001101,2]
[404273830,1770022237873,-9999.99,0.0001101,2]
[404273832,1770022237889,-150.99,0.0001101,2]
[404273834,1770022237900,-150.99,0.0001101,2]
[404273836,1770022237909,-9999.99,0.0001101,2]
[404273838,1770022237919,-2720.6,0.0001101,2]
[404273840,1770022237929,-299.99,0.0001101,2]
[404273842,1770022237939,-3462.01,0.0001101,2]
[404273844,1770022237952,-1201.39,0.0001101,2]
[404273846,1770022237962,-3847.13,0.0001101,2]
[404273848,1770022237972,-9999.99,0.0001101,2]
[404273850,1770022237983,-19999.99,0.0001101,2]
[404273853,1770022237993,-151.0,0.0001101,2]
[404273855,1770022238003,-151.0,0.0001101,2]
[404273857,1770022238014,-151.0,0.0001101,2]
[404273859,1770022238024,-151.0,0.0001101,2]
[404273861,1770022238035,-151.0,0.0001101,2]
[404273863,1770022238046,-151.0,0.0001101,2]
[404273865,1770022238056,-151.0,0.0001101,2]
[404273867,1770022238067,-151.0,0.0001101,2]
[404273869,1770022238078,-151.0,0.0001101,2]
[404273871,1770022238088,-151.0,0.0001101,2]
[404273873,1770022238099,-151.0,0.0001101,2]
[404273875,1770022238110,-500.0,0.0001101,2]
[404273877,1770022238120,-393.99617909,0.0001101,2]
[404273879,1770022238130,-500.0,0.0001101,2]
[404273881,1770022238140,-500.0,0.0001101,2]
[404273883,1770022238150,-500.0,0.0001101,2]
[404273885,1770022238161,-500.0,0.0001101,2]
[404273888,1770022238171,-500.0,0.0001101,2]
[404273890,1770022238181,-500.0,0.0001101,2]
[404273892,1770022238190,-500.0,0.0001101,2]
[404273894,1770022238202,-500.0,0.0001101,2]
[404273896,1770022238212,-500.0,0.0001101,2]
[404273898,1770022238223,-500.0,0.0001101,2]
[404273900,1770022238239,-500.0,0.0001101,2]
[404273902,1770022238250,-151.0,0.0001101,2]
[404273905,1770022238262,-151.0,0.0001101,2]
[404273907,1770022238274,-151.0,0.0001101,2]
[404273908,1770022238284,-151.0,0.0001101,2]
[404273911,1770022238294,-151.0,0.0001101,2]
[404273913,1770022238306,-151.0,0.0001101,2]
[404273915,1770022238316,-151.0,0.0001101,2]
[404273917,1770022238326,-151.0,0.0001101,2]
[404273919,1770022238337,-151.0,0.0001101,2]
[404273921,1770022238347,-151.0,0.0001101,2]
[404273923,1770022238357,-151.0,0.0001101,2]
[404273925,1770022238367,-151.0,0.0001101,2]
[404273926,1770022238377,-151.0,0.0001101,2]
[404273927,1770022238388,-151.0,0.0001101,2]
[404273928,1770022238398,-151.0,0.0001101,2]
[404273929,1770022238410,-151.0,0.0001101,2]
[404273930,1770022238420,-151.0,0.0001101,2]
[404273931,1770022238431,-151.0,0.0001101,2]
[404273932,1770022238441,-151.0,0.0001101,2]
[404273933,1770022238451,-151.0,0.0001101,2]
[404273934,1770022238462,-1345.29,0.00011015,2]
[404273935,1770022238472,-500.0,0.00011016,2]
[404273936,1770022238482,-1000.0,0.00011017,2]
[404273937,1770022238494,-407979.6603,0.00011017,2]
[404273938,1770022238505,-614.6751581,0.00011017,2]
[404273939,1770022238515,-96953.6158206,0.00011017,2]
[404273940,1770022238525,-1345.29,0.00011042,2]
[404273941,1770022238535,-1345.29,0.0001107,2]
[404273942,1770022238547,-36266.91542156,0.00011099,2]
[404273943,1770022238557,-10000.0,0.00011216,2]
[404273944,1770022238568,-500.0,0.0001129,2]
[404273945,1770022238578,-1067.0,0.00011381,2]
[404273946,1770022238588,-500.0,0.00011558,2]
[404273947,1770022238603,-500.0,0.00011564,2]
[404273948,1770022238614,-36266.91542155,0.00011603,2]
[404273949,1770022238625,-317.0,0.00011641,2]
[404273950,1770022238636,-529.0,0.00011707,2]
[404273951,1770022238646,-1000.0,0.00011812,2]
[404273952,1770022238657,-500.0,0.00011838,2]
[404273953,1770022238667,-197.07,0.0001185,2]
[404273954,1770022238678,-200.0,0.000119,2]
[404273955,1770022238689,-93109.65418148,0.00012004,2]
[404273956,1770022238701,-1680.0,0.00012006,2]
[404273957,1770022238712,-502.19943206,0.00012007,2]
[404273958,1770022238723,-250.0,0.00012007,2]
[404273959,1770022238738,-200.0,0.00012019,2]
[404273960,1770022238749,-500.0,0.00012106,2]
[404273961,1770022238760,-200.0,0.00012139,2]
[404273962,1770022238770,-269.0,0.00012217,2]
[404273963,1770022238780,-200.0,0.00012261,2]
[404273964,1770022238791,-200.0,0.00012383,2]
[404273965,1770022238802,-36266.91542155,0.0001239,2]
[404273966,1770022238815,-21633.275825,0.00012412,2]
[404273967,1770022238825,-364.26275163,0.00012587,2]
[404273968,1770022238836,-500.0,0.00012654,2]
[404273969,1770022238846,-197.07,0.00012696,2]
[404273970,1770022238856,-4827.0362993,0.00012724,2]
[404273971,1770022238868,-500.0,0.00012822,2]
[404273972,1770022238878,-150.0,0.00012912,2]
[404273973,1770022238888,-202.02677441,0.00012912,2]
[404273974,1770022238899,-150.0,0.00012912,2]
[404273975,1770022238909,-151.91529487,0.00012912,2]
[404273976,1770022238919,-150.0,0.00012912,2]
[404273977,1770022238930,-284.56,0.00012921,2]
[404273978,1770022238940,-150.0,0.00012967,2]
[404273979,1770022238951,-150.0,0.00013022,2]
[404273980,1770022238965,-164.64,0.00013072,2]
[404273981,1770022238977,-150.0,0.00013076,2]
[404273982,1770022238989,-151.0,0.00013096,2]
[404273983,1770022239001,-151.0,0.00013096,2]
[404273984,1770022239012,-151.0,0.00013096,2]
[404273985,1770022239022,-151.0,0.00013098,2]
[404273986,1770022239033,-151.0,0.00013098,2]
[404273987,1770022239044,-1000.0,0.00013125,2]
[404273988,1770022239054,-150.0,0.00013131,2]
[404273989,1770022239065,-36266.91542155,0.00013177,2]
[404273990,1770022239075,-250.0,0.00013186,2]
[404273991,1770022239086,-500.0,0.00013202,2]
[404273992,1770022239097,-2351.0,0.00013207,2]
[404273993,1770022239108,-247.77843093,0.00013342,2]
[404273994,1770022239120,-500.0,0.0001337,2]
[404273995,1770022239131,-296.60482016,0.00013388,2]
[404273996,1770022239141,-150.0,0.00013424,2]
[404273997,1770022239151,-3240.0,0.00013425,2]
[404273998,1770022239162,-207.91969894,0.00013479,2]
[404273999,1770022239173,-200.0,0.000135,2]